Cogmind - Beta 11.1 @@@ ROGUE MODE // 2022.09.13 @ 18:00:54 Player: morimori Result: Destroyed by G-34 Mercenary with Small Laser Performance ------------- Evolutions (1) 500 Regions Visited (4) 800 Robots Destroyed (29) 145 Value Destroyed (545) 545 Prototype IDs (0) 0 Alien Tech Used (0) 0 Bonus (0) 0 TOTAL SCORE: 1990 Bonus ------- None Cogmind --------- Core Integrity 0/400 Matter 300/300 Energy 100/100 System Corruption 0% Temperature Hot (215) Movement Core (350) Ox6 Location -9/Mines Parts ------- > --- POWER (1) -------- (None) > --- PROPULSION (4) --- (None) > --- UTILITY (2) ------ Large Storage Unit > --- WEAPON (2) ------- (None) > --- INVENTORY (15) --- Ion Engine Improved Ion Engine Light Treads Light Treads Aluminum Leg Aluminum Leg Aluminum Leg Heat Sink High-capacity Storage Unit Terrain Scan Processor Improved Targeting Computer Light Armor Plating Shield Generator Peak State ------------ > --- POWER ------------ Light Ion Engine > --- PROPULSION ------- Aluminum Leg Aluminum Leg Aluminum Leg Aluminum Leg > --- UTILITY ---------- Large Storage Unit Improved Terrain Scanner > --- WEAPON ----------- Beam Rifle Beam Rifle > --- INVENTORY -------- Ion Engine Ion Engine Improved Ion Engine Light Treads Light Treads Aluminum Leg Heat Sink High-capacity Storage Unit Terrain Scan Processor Improved Targeting Computer Light Armor Plating Shield Generator Medium Laser Small Laser Heavy Assault Rifle [Rating: 15] Favorites ----------- Power Light Ion Engine Engine Light Ion Engine Propulsion Aluminum Leg Leg Aluminum Leg Utility Improved Terrain Scanner Device Improved Terrain Scanner Storage Large Storage Unit Weapon EM Pulse Gun Energy Gun EM Pulse Gun Ballistic Gun Assault Rifle Build | -11 -10 -10 -9 -9 ------- Run | Scr Mat Min Mat Min Slots Evolved 2 | . . . 2 . Power . | . . . . . Propulsion 2 | . . . 2 . Utility . | . . . . . Weapon . | . . . . . Parts Attached 20 | 6 2 2 8 2 Power 3 | 1 . 1 1 . Engine 3 | 1 . 1 1 . Core . | . . . . . Reactor . | . . . . . Propulsion 5 | 1 1 . 3 . Treads . | . . . . . Leg 5 | 1 1 . 3 . Wheel . | . . . . . Hover . | . . . . . Flight . | . . . . . Utility 3 | 2 1 . . . Device 1 | 1 . . . . Storage 2 | 1 1 . . . Processor . | . . . . . Hackware . | . . . . . Protection . | . . . . . Artifact . | . . . . . Weapon 9 | 2 . 1 4 2 Energy Gun 4 | 1 . . 2 1 Energy Cannon . | . . . . . Ballistic Gun 5 | 1 . 1 2 1 Ballistic Cannon . | . . . . . Launcher . | . . . . . Special Weapon . | . . . . . Impact Weapon . | . . . . . Slashing Weapon . | . . . . . Piercing Weapon . | . . . . . Special Melee Weapon . | . . . . . Unidentified Prototypes . | . . . . . Parts Lost 10 | . . 1 . 9 Power 1 | . . . . 1 Propulsion 4 | . . . . 4 Utility 1 | . . . . 1 Weapon 4 | . . 1 . 3 Highest Loss Streak 9 | . . 1 . 9 To Critical Strikes . | . . . . . Average Slot Usage (%) 98 | . 98 100 99 62 Engine 12 | . 14 14 11 7 Leg 33 | . 26 28 43 25 Device 12 | . 14 14 11 7 Storage 12 | . 14 14 11 11 Energy Gun 15 | . 14 14 17 7 Ballistic Gun 10 | . 14 14 4 3 Naked Turns . | . . . . . Heaviest Build 30 | 13 28 28 30 . Greatest Support 40 | 10 20 20 40 . Greatest Overweight (x) 2 | 2 1 1 . . Average Overweight (x) . | . 1 1 . . Largest Inventory Capacity 15 | 8 15 15 15 15 Average Capacity 14 | 7 14 15 15 15 Most Carried 15 | 8 11 15 15 15 Average Carried 12 | 5 8 14 14 14 Final Capacity 15 | 8 15 15 15 15 Final Carried 15 | 8 11 14 15 13 Class Distribution -------------------- 71% | Mutant 28% | Scavenger-Mutant Dominant Class ---------------- Mutant | -10/Materials Mutant | -10/Mines Scavenger-Mutant | -9/Materials Mutant | -9/Mines Resources | -11 -10 -10 -9 -9 ----------- Run | Scr Mat Min Mat Min Matter Collected 511 | 281 50 69 111 . Remotely . | . . . . . Salvage Created 967 | 138 195 274 360 . Parts 68 | 14 15 12 27 . Haulers Intercepted . | . . . . . Recyclers Shooed . | . . . . . Parts Field Recycled . | . . . . . Retrieved Matter . | . . . . . Parts Self-Destructed . | . . . . . Prevented . | . . . . . Kills | -11 -10 -10 -9 -9 ------- Run | Scr Mat Min Mat Min Combat Hostiles Destroyed 17 | . . 7 10 . Guns 16 | . . 6 10 . AOE 1 | . . 1 . . Classes Destroyed 9 | 3 2 2 2 . Worker 3 | 1 1 1 . . Builder 2 | . 2 . . . Tunneler 2 | 2 . . . . Recycler 2 | 1 1 . . . Operator 1 | . . . 1 . Watcher 2 | . 2 . . . Swarmer 7 | . . 3 4 . Grunt 8 | . . 4 4 . Sentry 2 | . . . 2 . Best Kill Streak 4 | 2 3 3 4 . Combat Bots Only 4 | . . 3 4 . Max Kills in Single Turn 3 | 1 3 2 1 . Gunslinging 1 | . . 1 . . Exploded 1 | . . 1 . . Melee . | . . . . . Uniques/NPCs Destroyed . | . . . . . Combat | -11 -10 -10 -9 -9 -------- Run | Scr Mat Min Mat Min Damage Taken 1604 | . 34 245 220 1105 Core 425 | . . 21 34 370 Absorbed by Shields . | . . . . . Regen/Repaired (Parts) 64 | . . . 64 . Core Remaining (%) 95 | 100 . 91 . . Volleys Fired 76 | 7 11 17 29 12 Largest 2 | 2 2 2 2 2 Hottest 112 | 60 60 60 112 112 Shots Fired 144 | 14 22 34 58 16 Gun 144 | 14 22 34 58 16 Cannon . | . . . . . Launcher . | . . . . . Special . | . . . . . Kinetic 55 | 7 11 17 17 3 Thermal 52 | . . . 40 12 Explosive . | . . . . . Electromagnetic 37 | 7 11 17 1 1 Robot Hit Streak 12 | 6 3 12 11 4 Robot Miss Streak 7 | 1 4 4 7 4 Penetration Max . | . . . . . Secondary Targets 1 | . . 1 . . Max Gunslinging Chain 1 | . . 1 . . Shots Hit Robots 85 | 12 8 25 31 9 Core Hits 40 | 5 6 13 15 1 Critical Kills . | . . . . . Critical Parts Destroyed 1 | . . 1 . . Critical Strikes 4 | . . 1 3 . Burn 3 | . . . 3 . Destroy 1 | . . 1 . . Melee Attacks . | . . . . . Impact . | . . . . . Slashing . | . . . . . Piercing . | . . . . . Sneak Attacks . | . . . . . Combat Hostiles . | . . . . . Follow-up Attacks . | . . . . . Damage Inflicted 1327 | 146 210 348 439 184 Guns 1194 | 146 113 312 439 184 Cannons . | . . . . . Explosions 133 | . 97 36 . . Melee . | . . . . . Ramming . | . . . . . Kinetic 378 | 81 23 154 79 41 Thermal 621 | . 97 36 360 128 Explosive . | . . . . . Electromagnetic 328 | 65 90 158 . 15 Impact . | . . . . . Slashing . | . . . . . Piercing . | . . . . . Highest Corruption . | . . . . . Average Corruption . | . . . . . Corruption Purged . | . . . . . Corruption Blocked . | . . . . . Overload Shots . | . . . . . Overflow Damage 11 | . . 11 . . Projectiles . | . . . . . Explosions 11 | . . 11 . . Melee . | . . . . . Knockbacks . | . . . . . Impact . | . . . . . Kinetic . | . . . . . Secondary . | . . . . . Self-Inflicted Damage 91 | . 35 56 . . Shots 2 | . 1 1 . . Rammed . | . . . . . Targets Rammed . | . . . . . Kicked . | . . . . . Crushed . | . . . . . Highest Temperature 349 | . 12 87 198 349 Average Temperature 82 | . 12 32 50 232 Received Heat Transfer 588 | . . 123 75 390 Effects 2 | . . . . 2 Shutdowns 1 | . . . . 1 Energy Bleed 1 | . . . . 1 Siege Activations . | . . . . . Robots Corrupted . | . . . . . Combat Hostiles . | . . . . . Parts Fried . | . . . . . Impact Corruptions . | . . . . . Robots Melted . | . . . . . Combat Hostiles . | . . . . . Parts Melted 2 | . 1 . 1 . Heat Transferred 1580 | . 100 . 1147 333 Parts Sabotaged . | . . . . . Parts Stolen . | . . . . . Parts Stripped . | . . . . . Power Chain Reactions 2 | . 1 1 . . Missiles Intercepted . | . . . . . Alert | -11 -10 -10 -9 -9 ------- Run | Scr Mat Min Mat Min Peak Influence 235 | 20 85 235 230 60 Initial 60 | . 13 33 15 60 Average 103 | 8 46 142 135 31 Maximum Alert Level 1 | . . 1 1 . Low Security (%) 79 | 100 100 75 65 100 Level 1 20 | . . 24 34 . Level 2 . | . . . . . Level 3 . | . . . . . Level 4 . | . . . . . Level 5 . | . . . . . High Security . | . . . . . Max Security . | . . . . . Squads Dispatched 2 | . . . 2 . Investigation . | . . . . . Extermination . | . . . . . Reinforcement 2 | . . . 2 . Assault . | . . . . . Garrison . | . . . . . Intercept . | . . . . . Searches Triggered . | . . . . . Construction Impeded . | . . . . . Haulers Reinforced . | . . . . . Active Scanning Responses . | . . . . . Cargo Convoy Interrupts . | . . . . . Stealth | -11 -10 -10 -9 -9 --------- Run | Scr Mat Min Mat Min Distress Signals . | . . . . . Communications Jammed . | . . . . . Distress Signals . | . . . . . Times Spotted 33 | . 4 7 16 6 Peak Tracking Total 6 | . 2 3 5 6 Tactical Retreats 1 | . . . 1 . Traps | -11 -10 -10 -9 -9 ------- Run | Scr Mat Min Mat Min Traps Triggered . | . . . . . Indirectly . | . . . . . Trap Hack Attempts . | . . . . . Triggered . | . . . . . Disarmed . | . . . . . Reprogrammed . | . . . . . Reused . | . . . . . Traps Extracted . | . . . . . Installed . | . . . . . Triggered . | . . . . . Machines | -11 -10 -10 -9 -9 ---------- Run | Scr Mat Min Mat Min Machines Disabled . | . . . . . Max in Single Turn . | . . . . . Machines Sabotaged . | . . . . . Garrisons Compromised . | . . . . . Overloaded Fab Kills . | . . . . . Hacking | -11 -10 -10 -9 -9 --------- Run | Scr Mat Min Mat Min Machines Accessed 4 | . 1 . 3 . Terminals 2 | . 1 . 1 . Fabricators . | . . . . . Repair Stations 1 | . . . 1 . Recycling Units . | . . . . . Scanalyzers 1 | . . . 1 . Garrison Access . | . . . . . Total Hacks 6 | . 1 . 5 . Successful 5 | . 1 . 4 . Failed 1 | . . . 1 . Catastrophic . | . . . . . Database Lockouts . | . . . . . Manual . | . . . . . Terminals 3 | . 1 . 2 . Fabricators . | . . . . . Repair Stations 2 | . . . 2 . Recycling Units . | . . . . . Scanalyzers 1 | . . . 1 . Garrison Access . | . . . . . Terminal Hacks 2 | . 1 . 1 . Alert Level 1 | . . . 1 . Zone Layout 1 | . 1 . . . Fabricator Hacks . | . . . . . Repair Station Hacks 2 | . . . 2 . Scan Component 1 | . . . 1 . Repair 1 | . . . 1 . Recycling Unit Hacks . | . . . . . Scanalyzer 1 | . . . 1 . Insert Component 1 | . . . 1 . Garrison Access Hacks . | . . . . . Unauthorized Hacks . | . . . . . Terminals . | . . . . . Fabricators . | . . . . . Repair Stations . | . . . . . Recycling Units . | . . . . . Scanalyzers . | . . . . . Garrison Access . | . . . . . Data Cores Recovered 1 | . . . 1 . Used . | . . . . . Hacking Detections 2 | . . . 2 . Full Trace Events . | . . . . . Feedback Events . | . . . . . Feedback Blocked . | . . . . . Robot Schematics Acquired . | . . . . . Robots Built . | . . . . . Authchips . | . . . . . Time . | . . . . . Total Robot Build Rating . | . . . . . Part Schematics Acquired . | . . . . . Parts Built . | . . . . . Authchips . | . . . . . Time . | . . . . . Total Part Build Rating . | . . . . . Parts Repaired 1 | . . . 1 . Time 26 | . . . 26 . Parts Recycled . | . . . . . Recycled Matter . | . . . . . Retrieved Matter . | . . . . . Retrieved Components . | . . . . . Parts Scanalyzed . | . . . . . Part Schematics Acquired . | . . . . . Parts Damaged . | . . . . . Bothacking | -11 -10 -10 -9 -9 ------------ Run | Scr Mat Min Mat Min Used RIF Installer . | . . . . . Robots Hacked . | . . . . . Non-combat . | . . . . . Combat . | . . . . . Robot Hacks Applied . | . . . . . Relay Couplers Released . | . . . . . Fabnet Peak Effective % . | . . . . . Robots Rewired . | . . . . . Allies Hacked . | . . . . . Hacks Repelled . | . . . . . Allies | -11 -10 -10 -9 -9 -------- Run | Scr Mat Min Mat Min Total Allies . | . . . . . Largest Group . | . . . . . Highest-Rated Group . | . . . . . Highest-Rated Ally . | . . . . . Total Orders . | . . . . . Ally Attacks . | . . . . . Total Damage . | . . . . . Kills . | . . . . . Allies Corrupted . | . . . . . Allies Melted . | . . . . . Intel | -11 -10 -10 -9 -9 ------- Run | Scr Mat Min Mat Min Robot Analysis Total . | . . . . . Derelict Logs Recovered 1 | . . 1 . . Drone Launches . | . . . . . Drone Recoveries . | . . . . . Exploration | -11 -10 -10 -9 -9 ------------- Run | Scr Mat Min Mat Min Turns Passed 1498 | 185 267 490 518 38 Spaces Moved 670 | 85 100 224 261 . Core 13 | 13 . . . . Treads . | . . . . . Legs 657 | 72 100 224 261 . Wheels . | . . . . . Hover . | . . . . . Flight . | . . . . . Fastest Speed 50 | 50 190 190 120 . Average Speed 159 | 166 190 190 120 . Slowest Speed 190 | 190 190 190 120 . Overloaded Moves . | . . . . . Propulsion Burnouts . | . . . . . Robots Hopped . | . . . . . Cave-ins Triggered . | . . . . . Exploration Rate (%) 20 | 5 22 38 31 6 Regions Visited 4 Branch Regions 2 Pre-discovered Areas . | . . . . . Known Exits Taken . | . . . . . Unknown Exits Taken 4 | 1 1 1 1 . Scrap Searched . | . . . . . Spaces Dug . | . . . . . Terrain Destroyed 14 | . 4 10 . . Melee . | . . . . . Projectile . | . . . . . AOE 14 | . 4 10 . . Terrain Rammed . | . . . . . Walls Destroyed . | . . . . . Machines Disabled . | . . . . . Actions | -11 -10 -10 -9 -9 --------- Run | Scr Mat Min Mat Min Total 961 | 115 156 256 412 22 Wait 150 | 4 39 6 93 8 Move 666 | 84 99 223 260 . Hop . | . . . . . Pick Up 36 | 14 4 6 12 . Fast Attach 2 | . . . 2 . Attach 14 | 6 1 2 3 2 Detach . | . . . . . Swap 4 | . 1 . 3 . Drop 13 | . 1 2 10 . Fire 76 | 7 11 17 29 12 Melee . | . . . . . Ram . | . . . . . Kick . | . . . . . Crush . | . . . . . Escape Stasis . | . . . . . Rewire . | . . . . . Trap . | . . . . . Miscellaneous . | . . . . . Route ------- -11/Scrapyard -10/Materials -10/Mines -9/Materials (discovered 2 exits: [*Min] / Sto) -9/Mines History --------- Turn | Location | Event 19 | -11/Scrapyard | Discovered new exit (range 15) 186 | -11/Scrapyard | Entered Materials 306 | -10/Materials | Build established: Mutant 410 | -10/Materials | Discovered new exit (range 14) 453 | -10/Materials | Entered Mines 921 | -10/Mines | Discovered new exit (range 8) 943 | -10/Mines | Entered Materials 943 | -9/Materials | Evolved 2 slots: Propulsion x2 944 | -9/Materials | Identified exit to Storage 1263 | -9/Materials | Repaired Aluminum Leg 1431 | -9/Materials | Discovered new exit (range 9) 1461 | -9/Materials | Entered Mines 1483 | -9/Mines | Core integrity fell below 50% 1492 | -9/Mines | Core integrity fell below 20% 1499 | -9/Mines | Destroyed by G-34 Mercenary with Small Laser Last Messages --------------- 01449_ Dropped Ion Engine. 01449_ Acquired Aluminum Leg. 01452_ R-06 Scavenger collects Ion Engine. LOCATION=UNKNOWN GOAL=ESCAPE 01463_ Critical hit (Burn: +37). 01469_ Beam Rifle severed. 01471_ Aluminum Leg destroyed. 01481_ Beam Rifle destroyed. 01482_ Power failure, Lgt. Ion Engine shutdown. 01484_ Aluminum Leg destroyed. 01486_ EM Shotgun destroyed. 01488_ Lgt. Ion Engine destroyed. 01489_ Imp. Terrain Scanner destroyed. 01491_ Hvy. Assault Rifle destroyed. 01492_ Overheating: Energy bleed (-20). 01492_ G-34 Mercenary destroyed. 01493_ R-06 Scavenger collects Sml. Laser. 01496_ R-06 Scavenger collects Beam Rifle. 01497_ R-06 Scavenger collects Aluminum Leg. Map ----- +----------------------------------------------------+ | | | | | | | | | | | | | | | | | | | | | | | | | | | | | | | | | | | | | | | ?????????????????#????????#??????????????????????? | | ??????????#???????#???????????????????#??????????? | | ?????????????????????????????????????????????????? | | ????????????#????????????#??#?#??#???????????????? | | ???????????????????##############????????????????? | | ???????????????????# #????????????????? | | ???????????????????# @ #??#?????????????? | | ?????????? ????????# glrgg #????????????????? | | ???????????????????# g r #????????????????? | | ???????????????????# #????????????????? | | ???????????????????# """" """" #????????????????? | | ???????????????????# """" """" #????????????????? | | ???????????????????# """" """" #????????????????? | | ???????????????????# ???????????????? | | ???????????????????#??### ##??####??????????????? | | ????????????????????????? ??????????????????????? | | ????????????????????????? ??????????????????????? | | ????????????????????????? ??????????????????????? | | ????????????????????????? ??????????????????????? | | ????????????????????????? ??????????????????????? | | ????????????????????????? ??????????????????????? | | ????????????????????????? ?? ???????????????????? | | ?????????????????????????????????????????????????? | | ?????????????????????????????????????????????????? | | ?????????????????????????????????????????????????? | | ?????????????????????????????????????????????????? | | ?????????????????????????????????????????????????? | | ?????????????????????????????????????????????????? | | ?????????????????????????????????????????????????? | | ?????????????????????????????????????????????????? | | ?????????????????????????????????????????????????? | +----------------------------------------------------+ Best States ------------- Heat Dissipation 28 Energy Generation 10 Energy Capacity 125 Matter Stores 300 Matter Capacity 300 Sight Range 16 Terrain Scan Range 16 Terrain Scan Density 10 Evasion (%) 55 Item Schematics ----------------- None Robot Schematics ------------------ None Fabricated ------------ Nothing Alien Tech Used ----------------- None Achievements -------------- None Challenges ------------ None Game ------ Seed EtherialSigixActivator Manual? 0 Play Time 00:19:52 Cumulative 29.2 hours Start 2022.09.13 @ 17:41:25 End 2022.09.13 @ 18:00:54 Sessions 1 Manual Loads 0 Difficulty Rogue Special Mode None Game No. 24 Rogue 24 Adventurer 0 Explorer 0 Win Type - Total 0 Types 0/0/0/0/0/0/0/0/0 Lore% 26 Gallery% 25 Achievement% 25 Wizard Run 0 Options --------- ASCII 0 Keyboard 0 Movement Mouse Keybinds 0 Fullscreen 2 Font 18/Terminus Map View 76x50 Tactical HUD 1 Map Filters NONE Filters NONE Steam 1 RUN: 3e746a2e-ff28-4322-b1fc-524214c1c586